Cogmind - Beta 11.1 @@@ ROGUE MODE // 2022.04.25 @ 16:30:26 Player: Lyra Result: Destroyed by H-88 Terminator with Heavy Machine Gun Performance ------------- Evolutions (8) 4000 Regions Visited (22) 4400 Robots Destroyed (276) 1380 Value Destroyed (11471) 11471 Prototype IDs (34) 680 Alien Tech Used (0) 0 Bonus (4348) 4348 TOTAL SCORE: 26279 Bonus ------- High Alert Combat Kills 684 Follower Combat Kills 1574 Entered Garrisons 200 Used RIF Installer 500 Entered DSFs 500 Network Hubs Disabled 200 Aligned with FarCom 300 Built Enhanced Grunts 300 A7 Reached Mainframe 300 Met R17 at Cetus 500 Friendly Fire -710 Cogmind --------- Core Integrity 0/1450 Matter 151/300 Energy 327/1215 System Corruption 28% Temperature Danger (412) Movement Treading (160) Location -2/Research Parts ------- > --- POWER (3) -------- Improved Ion Engine Vortex Chain Reactor > --- PROPULSION (6) --- Improved Heavy Treads Improved Heavy Treads Improved Heavy Treads > --- UTILITY (10) ----- High-capacity Storage Unit Energy Well Advanced Targeting Computer > --- WEAPON (4) ------- Long-range Proton Cannon Compact HERF Cannon Compact HERF Cannon > --- INVENTORY (20) --- Enhanced Force Lance Peak State ------------ > --- POWER ------------ Particle Reactor Quantum Reactor Light Quantum Reactor > --- PROPULSION ------- Improved Heavy Treads Advanced Heavy Treads Centrium Heavy Treads > --- UTILITY ---------- Advanced Heat Sink Huge Storage Unit Advanced Targeting Computer Improved Target Analyzer Improved Phase Shifter Centrium Medium Armor Plating Centrium Medium Armor Plating Centrium Medium Armor Plating Improved Remote Force Field Long-range Tractor Beam > --- WEAPON ----------- XL Autogun Subcomponent Heavy Gauss Cannon Heavy Gauss Cannon Heavy Gauss Cannon > --- INVENTORY -------- Particle Reactor Medium Treads Medium Treads Medium Treads Advanced Medium Treads Advanced Heat Sink Energy Well Energy Well Advanced Sensor Array Advanced Terrain Scan Processor Advanced ECM Suite Authchip [R/Combat] Gamma Rifle Gamma Rifle Long-range Proton Cannon Long-range Proton Cannon Long-range Proton Cannon Long-range Proton Cannon Heavy Missile Launcher Heavy Missile Launcher Heavy Missile Launcher Improved Remote Datajack [Rating: 171] Favorites ----------- Power Particle Reactor Engine Cooled Ion Engine Power Core Micro Nuclear Core Reactor Particle Reactor Propulsion Aluminum Leg Treads Improved Heavy Treads Leg Aluminum Leg Wheel Armored Wheel Utility High-capacity Storage Unit Device Advanced Heat Sink Storage High-capacity Storage Unit Processor Advanced Terrain Scan Processor Hackware Advanced Hacking Suite Protection Centrium Medium Armor Plating Weapon XL Autogun Subcomponent Energy Gun Particle Gun Energy Cannon Phase Cannon Ballistic Gun XL Autogun Subcomponent Ballistic Cannon Flak Cannon Launcher Heavy Missile Launcher Special Weapon Plasma Flamer Slashing Weapon Scythe Piercing Weapon Enhanced Force Lance Build | -11 -10 -10 -9 -9 -9 -8 -8 -8 -8 -7 -6 -6 -5 -5 -5 -4 -4 -4 -4 -4 -3 -2 ------- Run | Scr Mat Min Mat Min Exi Min Mat Gar Mat Fac Fac DSF Fac Upp Upp Fac Ext Cet Arc Hub Res Res Slots Evolved 16 | . . . 2 . . . 2 . . 2 2 . 2 . . 2 . . . . 2 2 Power 2 | . . . . . . . . . . . 1 . . . . . . . . . 1 . Propulsion 4 | . . . 1 . . . . . . 1 1 . 1 . . . . . . . . . Utility 8 | . . . 1 . . . . . . 1 . . 1 . . 2 . . . . 1 2 Weapon 2 | . . . . . . . 2 . . . . . . . . . . . . . . . Parts Attached 280 | 7 8 1 25 . . 6 21 20 3 27 7 8 14 19 3 11 28 7 2 1 18 44 Power 32 | 2 1 . 2 . . 1 2 . . 1 1 1 3 1 1 1 4 1 1 . 1 8 Engine 14 | 2 1 . 2 . . 1 1 . . . . 1 1 . 1 . 1 . . . . 3 Core 8 | . . . . . . . 1 . . 1 1 . 2 1 . 1 1 . . . . . Reactor 10 | . . . . . . . . . . . . . . . . . 2 1 1 . 1 5 Propulsion 71 | 2 . . 6 . . 3 8 5 . 9 5 1 3 2 . 3 6 2 1 . 2 13 Treads 33 | . . . . . . . 3 2 . . 2 . 2 2 . 1 6 2 1 . 2 10 Leg 30 | 2 . . 6 . . 3 5 3 . 8 3 . . . . . . . . . . . Wheel 8 | . . . . . . . . . . 1 . 1 1 . . 2 . . . . . 3 Hover . | . . . . . . . . . . . . . . . . . . . . . . . Flight . | . . . . . . . . . . . . . . . . . . . . . . . Utility 92 | 1 2 . 7 . . 2 4 3 3 11 1 2 6 5 1 4 8 4 . 1 13 14 Device 57 | . 1 . 4 . . 1 1 2 1 7 1 2 3 5 . 2 5 2 . 1 10 9 Storage 8 | 1 1 . 1 . . . . 1 . 1 . . . . . 1 . . . . . 2 Processor 9 | . . . . . . . 2 . 2 2 . . 1 . . 1 1 . . . . . Hackware 3 | . . . . . . . . . . . . . 2 . . . . . . . 1 . Protection 15 | . . . 2 . . 1 1 . . 1 . . . . 1 . 2 2 . . 2 3 Artifact . | . . . . . . . . . . . . . . . . . . . . . . . Weapon 85 | 2 5 1 10 . . . 7 12 . 6 . 4 2 11 1 3 10 . . . 2 9 Energy Gun 29 | 2 5 . 5 . . . 2 8 . . . . . 3 1 1 1 . . . . 1 Energy Cannon 8 | . . . 1 . . . . . . . . 1 . . . 1 . . . . . 5 Ballistic Gun 18 | . . . 1 . . . 1 3 . . . 1 . 4 . 1 6 . . . 1 . Ballistic Cannon 19 | . . . 1 . . . 2 1 . 6 . 2 2 1 . . 1 . . . 1 2 Launcher 3 | . . . . . . . . . . . . . . 3 . . . . . . . . Special Weapon 3 | . . 1 . . . . . . . . . . . . . . 2 . . . . . Impact Weapon . | . . . . . . . . . . . . . . . . . . . . . . . Slashing Weapon 4 | . . . 2 . . . 2 . . . . . . . . . . . . . . . Piercing Weapon 1 | . . . . . . . . . . . . . . . . . . . . . . 1 Special Melee Weapon . | . . . . . . . . . . . . . . . . . . . . . . . Unidentified Prototypes 11 | . . . 5 . . . . . . . . . . . . . 1 2 . . 1 2 Corrupted Parts 5 | . . . . . . . . 1 . . . . . 3 . . . 1 . . . . System Corruption 30 | . . . . . . . . 3 . . . . . 20 . . . 7 . . . . Parts Lost 108 | . 1 . 12 . . 6 10 8 . 5 . 5 5 12 . . 3 1 . . 2 38 Power 15 | . . . 1 . . 1 1 . . 1 . . 1 2 . . 1 . . . . 7 Propulsion 31 | . . . 5 . . 3 5 2 . 2 . . 1 4 . . . . . . . 9 Utility 32 | . . . 4 . . 2 2 1 . . . 2 1 1 . . 2 1 . . 1 15 Weapon 30 | . 1 . 2 . . . 2 5 . 2 . 3 2 5 . . . . . . 1 7 Highest Loss Streak 13 | . 1 . 5 . . 4 3 3 . 2 . 3 2 7 . . 1 1 . . 1 13 To Critical Strikes 1 | . . . . . . . . . . . . . . . . . . . . . . 1 Average Slot Usage (%) 87 | . 98 100 94 100 100 92 96 95 100 98 97 80 86 71 57 70 74 79 84 84 84 69 Engine 3 | . 14 14 10 11 11 10 7 . . . . 5 4 . 3 5 1 . . . . . Core 2 | . . . . . . . . 9 9 7 13 6 5 6 . 2 2 5 . . . . Reactor 2 | . . . . . . . . . . . . . . . . . 5 5 9 10 14 9 Treads 8 | . . . . . . . 2 18 . . 2 13 21 17 11 14 15 15 15 15 13 12 Leg 14 | . 28 28 32 33 33 31 24 7 27 29 28 4 . . . . . . . . . . Device 11 | . 12 14 11 11 11 10 3 9 9 9 13 13 16 14 15 17 13 10 10 10 10 13 Storage 7 | . 14 14 11 11 11 11 9 12 11 6 6 6 5 5 5 5 5 5 5 5 4 3 Processor 6 | . . . . . . . 9 3 6 9 6 1 4 5 5 7 10 10 10 10 9 7 Protection 4 | . . . 5 11 11 5 2 . . 2 . . . . 1 2 2 6 10 10 10 7 Energy Gun 4 | . 27 23 14 . . . 1 20 18 4 . . . 1 6 5 . . . . . . Ballistic Gun 6 | . . . 2 . . . 1 7 9 2 . 3 3 1 . 2 14 21 21 21 16 5 Ballistic Cannon 6 | . . . 1 . . . 4 7 9 21 26 14 13 6 . . . . . . 2 7 Slashing Weapon 4 | . . . 1 22 22 22 28 . . . . . . . . . . . . . . . Naked Turns . | . . . . . . . . . . . . . . . . . . . . . . . Heaviest Build 206 | 12 17 17 58 56 56 60 64 66 64 77 79 88 89 80 75 120 146 146 148 148 177 206 Greatest Support 235 | 20 20 20 30 30 30 33 64 64 30 67 140 140 200 158 58 88 225 235 235 235 235 225 Greatest Overweight (x) 6 | . . . 2 1 1 2 1 6 2 6 1 . . 1 1 4 3 . . . 1 4 Average Overweight (x) . | . . . . 1 1 1 . . 2 1 . . . . . 1 . . . . . . Largest Inventory Capacity 25 | 8 8 8 20 20 20 20 20 20 20 20 20 20 20 20 20 25 25 25 25 25 25 25 Average Capacity 20 | 6 8 8 19 20 20 20 20 20 20 19 20 20 20 20 20 21 25 25 25 25 25 22 Most Carried 25 | 1 8 8 20 20 20 20 20 20 18 20 20 20 20 20 20 22 25 25 25 25 25 24 Average Carried 19 | . 6 7 16 20 19 19 19 18 18 19 19 19 19 19 19 20 24 24 24 24 24 18 Final Capacity 25 | 8 8 8 20 20 20 20 20 20 20 20 20 20 20 20 20 25 25 25 25 25 25 20 Final Carried 25 | 1 8 8 20 20 20 20 20 18 18 20 20 20 20 20 20 22 25 24 25 25 24 1 Class Distribution -------------------- 25% | Mutant 13% | Skirmisher 13% | Scavenger-Skirmisher 12% | Scavenger-Mutant 11% | Scavenger-Gunner 9% | Scavenger-Tank 3% | Machinist-Skirmisher Dominant Class ---------------- Mutant | -10/Materials Mutant | -10/Mines Scavenger-Mutant | -9/Materials Scavenger-Mutant | -9/Mines Scavenger-Mutant | -9/Exiles Mutant | -8/Mines Mutant | -8/Materials Skirmisher | -8/Garrison Scavenger-Skirmisher | -8/Materials Scavenger-Skirmisher | -7/Factory Skirmisher | -6/Factory Skirmisher | -6/DSF Machinist-Skirmisher | -5/Factory Mutant | -5/Upper Caves Mutant | -5/Upper Caves Skirmisher | -4/Factory Gunner | -4/Extension Commander-Gunner | -4/Cetus Scavenger-Gunner | -4/Archives Scavenger-Tank | -4/Hub_04(d) Scavenger-Tank | -3/Research Scavenger-Tank | -2/Research Resources | -11 -10 -10 -9 -9 -9 -8 -8 -8 -8 -7 -6 -6 -5 -5 -5 -4 -4 -4 -4 -4 -3 -2 ----------- Run | Scr Mat Min Mat Min Exi Min Mat Gar Mat Fac Fac DSF Fac Upp Upp Fac Ext Cet Arc Hub Res Res Matter Collected 9654 | 107 573 . 324 20 . 60 143 405 . 982 168 543 194 718 95 514 1777 354 118 221 685 1653 Remotely 1241 | . . . . . . . . . . . . . . . . . . . . . . 1241 Salvage Created 13568 | . 635 . 1400 161 . 351 1087 512 . 533 . 472 244 675 . 566 3242 149 176 742 610 2013 Parts 590 | . 37 . 65 8 . 25 53 33 . 28 . 17 21 26 . 13 111 6 8 44 38 57 Haulers Intercepted 9 | . 2 . 4 . . . 2 . . . . . . . . . . . . 1 . . Recyclers Shooed 19 | . . . 2 . . . 1 . . 4 . . . . . . 5 . . . 1 6 Parts Field Recycled . | . . . . . . . . . . . . . . . . . . . . . . . Retrieved Matter . | . . . . . . . . . . . . . . . . . . . . . . . Parts Self-Destructed 13 | . . . . . . . . . . . . . . 13 . . . . . . . . Prevented 7 | . . . . . . . . . . . . . . 7 . . . . . . . . Kills | -11 -10 -10 -9 -9 -9 -8 -8 -8 -8 -7 -6 -6 -5 -5 -5 -4 -4 -4 -4 -4 -3 -2 ------- Run | Scr Mat Min Mat Min Exi Min Mat Gar Mat Fac Fac DSF Fac Upp Upp Fac Ext Cet Arc Hub Res Res Combat Hostiles Destroyed 192 | . 11 . 21 2 . 8 19 14 . 9 . 10 8 17 . 3 28 2 2 5 9 24 Melee 23 | . . . . 2 . 8 13 . . . . . . . . . . . . . . . Guns 88 | . 11 . 17 . . . 1 9 . 2 . . 1 1 . 3 27 2 2 5 5 2 Cannons 65 | . . . 2 . . . 5 5 . 7 . 10 7 4 . . 1 . . . 4 20 AOE 13 | . . . 1 . . . . . . . . . . 11 . . . . . . . 1 Classes Destroyed 21 | . 4 . 5 . . 1 1 2 . 1 . 3 . 2 . . . . . 2 . . Worker 16 | . . . 1 . . 1 2 . . 3 . . . . . . . . . 6 1 2 Builder 6 | . . . . . . . . . . . . . . . . . . . . 1 . 5 Tunneler 2 | . . . . . . . . . . . . . . . . . . . . 1 1 . Hauler 9 | . 2 . 4 . . . 2 . . . . . . . . . . . . 1 . . Recycler 28 | . . . 3 1 . 1 2 . . 3 . . . . . 2 8 . . 1 . 7 Mechanic 1 | . . . . . . . 1 . . . . . . . . . . . . . . . Operator 4 | . 1 . 1 . . . . . . . . . . . . . . . . 1 . 1 Watcher 16 | . 1 . 4 . . . 1 1 . 2 . . . . . 2 . . . 3 1 1 Swarmer 27 | . . . 3 . . 3 7 4 . . . . 4 6 . . . . . . . . Cutter 2 | . . . . . . . . 2 . . . . . . . . . . . . . . Saboteur 1 | . . . . . . . . 1 . . . . . . . . . . . . . . Grunt 69 | . 11 . 10 2 . 2 7 7 . 3 . 5 . 6 . . 10 1 . . . 5 Brawler 5 | . . . 1 . . 1 . . . . . . . 2 . . . . . . . 1 Duelist 3 | . . . . . . . . . . . . 1 . . . 1 1 . . . . . Sentry 33 | . . . 7 . . . 5 1 . 2 . . . 1 . . 10 . 2 1 1 3 Specialist 3 | . . . . . . . . . . . . 3 . . . . . . . . . . Hunter 12 | . . . . . . 2 . . . 1 . . . 1 . . 4 . . . 1 3 Programmer 33 | . . . . . . . . . . 3 . . 4 . . 2 1 . . 4 7 12 Heavy 1 | . . . . . . . . . . . . 1 . . . . . . . . . . Behemoth 3 | . . . . . . . . . . . . . . 1 . . 2 . . . . . Cetus Guard 1 | . . . . . . . . . . . . . . . . . . 1 . . . . Samaritan 3 | . . . . . . . . . . . . . . 3 . . . . . . . . Thug 1 | . . . . . . . . . . . . . . . . . 1 . . . . . Best Kill Streak 10 | . 2 . 6 3 . 7 5 8 . 3 . 4 4 10 . 5 7 1 2 10 3 9 Combat Bots Only 10 | . 2 . 6 2 . 6 5 7 . 3 . 4 4 10 . 3 7 1 2 2 2 6 Max Kills in Single Turn 10 | . 1 . 1 1 . 1 1 2 . 2 . 1 1 4 . 1 3 1 1 10 2 4 Gunslinging . | . . . . . . . . . . . . . . . . . . . . . . . Exploded 4 | . . . 1 . . . . . . . . . . 4 . . . . . . . 1 Melee 1 | . . . . 1 . 1 1 . . . . . . . . . . . . . . . Uniques/NPCs Destroyed . | . . . . . . . . . . . . . . . . . . . . . . . Combat | -11 -10 -10 -9 -9 -9 -8 -8 -8 -8 -7 -6 -6 -5 -5 -5 -4 -4 -4 -4 -4 -3 -2 -------- Run | Scr Mat Min Mat Min Exi Min Mat Gar Mat Fac Fac DSF Fac Upp Upp Fac Ext Cet Arc Hub Res Res Damage Taken 24337 | . 311 . 1110 71 . 622 1329 1203 . 1202 . 1338 760 2256 . 84 2637 397 270 309 1989 8449 Core 3694 | . 72 . 176 . . 150 214 118 . 241 . 39 34 438 . . 142 52 22 24 518 1454 Absorbed by Shields 507 | . . . . . . . . . . . . . . . . . 144 93 . . . 270 Reduced by Siege Mode 6 | . . . . . . . . . . . . . . 6 . . . . . . . . Redirected to Shielding 129 | . . . . . . . . . . . . . . . . . . . . . . 129 Regen/Repaired (Parts) 206 | . . . . . . . . . . 206 . . . . . . . . . . . . Core Remaining (%) 64 | 100 . 71 . . . 18 . . 39 65 . 95 . . 52 . . . . 79 60 . Volleys Fired 617 | . 52 . 68 . . . 11 37 . 42 . 31 20 43 . 15 132 13 9 18 47 79 Largest 4 | . 2 . 2 . . . 4 4 . 4 . 4 4 4 . 3 4 4 4 4 4 4 Hottest 282 | . 115 . 165 . . . 178 210 . 197 . 229 217 228 . 230 141 80 80 80 121 282 Shots Fired 1662 | . 102 . 132 . . . 19 119 1 140 . 95 68 104 1 25 303 52 36 71 156 238 Gun 1025 | . 102 . 109 . . . 2 82 1 27 . 11 11 34 . 20 265 52 36 71 139 63 Cannon 588 | . . . 8 . . . 17 37 . 113 . 84 57 59 1 5 15 . . . 17 175 Launcher 11 | . . . . . . . . . . . . . . 11 . . . . . . . . Special 38 | . . . 15 . . . . . . . . . . . . . 23 . . . . . Kinetic 1199 | . . . 24 . . . 17 63 . 121 . 64 48 39 . 10 274 52 36 71 156 224 Thermal 245 | . 86 . 42 . . . . 3 . 19 . 31 20 37 1 . 6 . . . . . Explosive 11 | . . . . . . . . . . . . . . 11 . . . . . . . . Electromagnetic 184 | . 16 . 66 . . . 2 53 1 . . . . 17 . 15 . . . . . 14 Robot Hit Streak 38 | . 12 . 17 . . . 6 7 . 8 . 5 10 22 . 8 38 19 21 21 11 16 Robot Miss Streak 23 | . 3 . 15 . . . 5 5 . 23 . 3 10 6 . 3 4 1 2 2 4 4 Penetration Max 1 | . . . . . . . . . . . . 1 . 1 . . . . . . . 1 Secondary Targets 8 | . 1 . 1 . . . . 1 . . . . . . . . 3 1 . . 1 . Max Gunslinging Chain 1 | . 1 . 1 . . . . 1 . . . . . . . . 1 1 . . 1 . Shots Hit Robots 1177 | . 70 . 100 5 . 23 64 59 . 76 . 49 41 67 . 16 238 47 31 51 89 151 Core Hits 611 | . 30 . 69 2 . 10 27 28 . 49 . 21 22 54 . 11 120 18 13 32 30 75 Critical Kills 1 | . . . . . . . . . . . . . 1 . . . . . . . . . Critical Parts Destroyed 3 | . . . . . . . . . . . . 1 2 . . . . . . . . . Critical Strikes 58 | . 2 . 3 2 . 1 1 2 . 2 . 3 4 1 . . 2 . . . 2 33 Burn 5 | . 2 . 3 . . . . . . . . . . . . . . . . . . . Destroy 4 | . . . . . . . . . . . . 1 3 . . . . . . . . . Blast 44 | . . . . . . . . 2 . 2 . 2 1 . . . 2 . . . 2 33 Corrupt 1 | . . . . . . . . . . . . . . 1 . . . . . . . . Sever 4 | . . . . 2 . 1 1 . . . . . . . . . . . . . . . Melee Attacks 119 | . . . . 6 . 29 84 . . . . . . . . . . . . . . . Impact . | . . . . . . . . . . . . . . . . . . . . . . . Slashing 119 | . . . . 6 . 29 84 . . . . . . . . . . . . . . . Piercing . | . . . . . . . . . . . . . . . . . . . . . . . Sneak Attacks 16 | . . . . 1 . 3 12 . . . . . . . . . . . . . . . Combat Hostiles . | . . . . . . . . . . . . . . . . . . . . . . . Follow-up Attacks 19 | . . . . . . 3 16 . . . . . . . . . . . . . . . Damage Inflicted 34923 | . 943 . 1851 187 . 800 2355 1086 . 1606 . 1485 825 3085 32 918 7106 928 662 2338 2385 6331 Guns 16761 | . 940 . 1309 . . . 9 672 . 249 . 60 44 493 . 729 6628 928 662 1194 1862 982 Cannons 11364 | . . . 74 . . . 269 414 . 1357 . 1425 781 1200 32 184 400 . . . 523 4705 Explosions 3460 | . . . 335 . . . . . . . . . . 1392 . . . . . 1144 . 589 Melee 3064 | . . . . 187 . 800 2077 . . . . . . . . . . . . . . . Ramming 141 | . 3 . . . . . . . . . . . . . . 5 78 . . . . 55 Kinetic 22687 | . . . 207 . . . 269 635 . 1446 . 925 445 736 . 615 6928 928 662 1194 2385 5312 Thermal 3624 | . 805 . 778 . . . . 16 . 160 . 560 380 710 32 . 100 . . . . 83 Explosive 1898 | . . . . . . . . . . . . . . 1392 . . . . . . . 506 Electromagnetic 3509 | . 135 . 866 . . . 9 435 . . . . . 247 . 298 . . . 1144 . 375 Impact . | . . . . . . . . . . . . . . . . . . . . . . . Slashing 3064 | . . . . 187 . 800 2077 . . . . . . . . . . . . . . . Piercing . | . . . . . . . . . . . . . . . . . . . . . . . Highest Corruption 38 | . . . . . . . 2 5 5 1 . . 7 38 38 2 2 7 . 5 12 28 Average Corruption 10 | . . . . . . . 2 2 5 1 . . 6 22 38 1 1 4 . 2 8 16 Corruption Purged 17 | . . . . . . . . . . . . . . . . . 4 7 . . 6 . Corruption Blocked . | . . . . . . . . . . . . . . . . . . . . . . . Effects 202 | . . . . . . . 2 7 12 6 . . 15 49 24 4 5 3 . 4 26 45 Message Errors 48 | . . . . . . . . 1 1 1 . . 2 9 6 . 2 1 . 3 9 13 Matter Fused 48 | . . . . . . . . 1 6 1 . . 4 15 5 2 2 1 . . 4 7 Heat Flow Errors 17 | . . . . . . . . . 3 . . . 3 6 . 1 . . . . . 4 Energy Discharges 20 | . . . . . . . 2 1 1 2 . . 1 4 3 . . 1 . . 1 4 Parts Rejected 4 | . . . . . . . . . . . . . . . . . . . . . 1 3 Data Loss (minor) 25 | . . . . . . . . 1 . 1 . . 1 5 8 1 1 . . . 3 4 Data Loss (major) 8 | . . . . . . . . 1 . 1 . . 1 3 . . . . . . . 2 Misfires 10 | . . . . . . . . . 1 . . . 1 3 1 . . . . . 3 1 Alerts 5 | . . . . . . . . . . . . . 2 . 1 . . . . . 1 1 Misdirections 2 | . . . . . . . . . . . . . . 1 . . . . . . . 1 Weapon Failures 15 | . . . . . . . . 2 . . . . . 3 . . . . . 1 4 5 Overload Shots . | . . . . . . . . . . . . . . . . . . . . . . . Overflow Damage 960 | . . . 178 37 . 34 215 11 . 97 . 9 18 135 . 7 15 . . 9 45 150 Projectiles 329 | . . . . . . . 18 11 . 12 . 9 18 87 . 7 15 . . . 45 107 Explosions 363 | . . . 178 . . . . . . 85 . . . 48 . . . . . 9 . 43 Melee 268 | . . . . 37 . 34 197 . . . . . . . . . . . . . . . Knockbacks 96 | . . . 1 . . . 3 7 . 22 . 3 10 7 . 1 2 . . . 4 36 Impact 2 | . . . . . . . . . . . . . . . . 1 . . . . . 1 Kinetic 88 | . . . 1 . . . 2 7 . 20 . 3 10 7 . . 2 . . . 4 32 Secondary 6 | . . . . . . . 1 . . 2 . . . . . . . . . . . 3 Self-Inflicted Damage 836 | . . . 205 . . . . . . 112 . . . 270 . . . . . 98 . 151 Shots 13 | . . . 4 . . . . . . 1 . . . 5 . . . . . 1 . 2 Rammed 18 | . . . . . . . . . . . . . . . . 1 4 . . . . 13 Targets Rammed 20 | . 1 . . . . . . . . . . . . . . 1 4 . . . . 14 Kicked 1 | . 1 . . . . . . . . . . . . . . . . . . . . . Crushed 1 | . . . . . . . . . . . . . . . . . . . . . . 1 Highest Temperature 614 | . 205 . 132 . . . 111 443 211 613 . 96 494 614 . 196 259 100 120 143 612 434 Average Temperature 117 | . 44 . 37 . . . 37 152 72 149 . 36 165 163 . 41 76 38 58 53 191 139 Received Heat Transfer 3787 | . 183 . 381 39 . 216 576 459 . 270 . 270 . 288 . . 350 38 36 30 . 651 Effects 67 | . . . . . . . . 2 . 15 . . 3 18 . . . . . . 27 2 Shutdowns 19 | . . . . . . . . 1 . 2 . . 2 2 . . . . . . 11 1 Energy Bleed 10 | . . . . . . . . . . 3 . . 1 3 . . . . . . 2 1 Interference 16 | . . . . . . . . . . 4 . . . 4 . . . . . . 8 . Matter Decay 3 | . . . . . . . . . . 1 . . . 1 . . . . . . 1 . Short Circuit 2 | . . . . . . . . 1 . . . . . . . . . . . . 1 . Damage (minor) 2 | . . . . . . . . . . . . . . 1 . . . . . . 1 . Damage (major) 11 | . . . . . . . . . . 4 . . . 6 . . . . . . 1 . Damage (core) 4 | . . . . . . . . . . 1 . . . 1 . . . . . . 2 . Siege Activations 1 | . . . . . . . . . . . . . . 1 . . . . . . . . Total Turns 9 | . . . . . . . . . . . . . . 9 . . . . . . . . Longest Duration 9 | . . . . . . . . . . . . . . 9 . . . . . . . . Robots Corrupted 3 | . . . 1 . . . . . . . . . . 1 . . . . . . . 1 Combat Hostiles 2 | . . . . . . . . . . . . . . 1 . . . . . . . 1 Parts Fried 21 | . . . 7 . . . . 1 . . . . . 2 . 1 . . . 8 . 2 Impact Corruptions . | . . . . . . . . . . . . . . . . . . . . . . . Robots Melted 1 | . . . 1 . . . . . . . . . . . . . . . . . . . Combat Hostiles 1 | . . . 1 . . . . . . . . . . . . . . . . . . . Parts Melted 12 | . 4 . 6 . . . . . . . . . . 1 . . 1 . . . . . Heat Transferred 7039 | . 2277 . 2196 . . . . 37 . 370 . 666 407 851 37 . 148 . . . . 50 Parts Sabotaged . | . . . . . . . . . . . . . . . . . . . . . . . Parts Stolen . | . . . . . . . . . . . . . . . . . . . . . . . Parts Stripped . | . . . . . . . . . . . . . . . . . . . . . . . Power Chain Reactions 5 | . . . 4 . . . . . . . . . . . . . . . . . . 1 Missiles Intercepted . | . . . . . . . . . . . . . . . . . . . . . . . Alert | -11 -10 -10 -9 -9 -9 -8 -8 -8 -8 -7 -6 -6 -5 -5 -5 -4 -4 -4 -4 -4 -3 -2 ------- Run | Scr Mat Min Mat Min Exi Min Mat Gar Mat Fac Fac DSF Fac Upp Upp Fac Ext Cet Arc Hub Res Res Peak Influence 983 | . 227 13 320 122 . 175 264 538 270 153 108 258 177 . . 138 910 983 447 744 483 860 Initial 455 | . . 13 4 67 . . . 133 261 31 65 78 135 . . . 25 455 289 . 390 243 Average 196 | . 115 13 158 77 . 99 92 383 203 62 88 170 105 . . 31 392 703 246 69 374 428 Maximum Alert Level 3 | . 1 . 1 . . . 1 2 1 . . 1 . . . . 3 3 2 3 2 3 Low Security (%) 62 | 100 91 100 68 100 . 100 82 8 31 100 100 59 100 . . 100 22 . 36 92 . . Level 1 24 | . 8 . 31 . . . 17 38 68 . . 40 . . . . 50 . 35 5 70 58 Level 2 9 | . . . . . . . . 52 . . . . . . . . 5 58 28 . 29 30 Level 3 3 | . . . . . . . . . . . . . . . . . 22 41 . 1 . 10 Level 4 . | . . . . . . . . . . . . . . . . . . . . . . . Level 5 . | . . . . . . . . . . . . . . . . . . . . . . . High Security . | . . . . . . . . . . . . . . . . . . . . . . . Max Security . | . . . . . . . . . . . . . . . . . . . . . . . Sterilizations 1 | . . . . . . . . . . . . 1 . . . . . . . . . . Squads Dispatched 37 | . 3 . 2 . . . 3 . 1 5 1 2 2 . . 1 4 . . 3 2 8 Investigation 7 | . 1 . 1 . . . 2 . 1 . . . . . . . 2 . . . . . Extermination 14 | . . . . . . . . . . 3 1 . 2 . . 1 . . . 1 2 4 Reinforcement 14 | . 2 . 1 . . . 1 . . 2 . 2 . . . . 1 . . 1 . 4 Assault 1 | . . . . . . . . . . . . . . . . . 1 . . . . . Garrison 1 | . . . . . . . . . . . . . . . . . . . . 1 . . Intercept . | . . . . . . . . . . . . . . . . . . . . . . . Searches Triggered . | . . . . . . . . . . . . . . . . . . . . . . . Construction Impeded 4 | . . . . . . . . . . 2 . . . . . . . . . . . 2 Haulers Reinforced 2 | . . . . . . . . . . . . . . . . . . . . . . 2 Active Scanning Responses . | . . . . . . . . . . . . . . . . . . . . . . . Cargo Convoy Interrupts . | . . . . . . . . . . . . . . . . . . . . . . . Stealth | -11 -10 -10 -9 -9 -9 -8 -8 -8 -8 -7 -6 -6 -5 -5 -5 -4 -4 -4 -4 -4 -3 -2 --------- Run | Scr Mat Min Mat Min Exi Min Mat Gar Mat Fac Fac DSF Fac Upp Upp Fac Ext Cet Arc Hub Res Res Distress Signals 16 | . 1 . 4 . . . 2 . . 1 . . . . . . 2 2 . 1 1 2 Communications Jammed 10 | . . . . . . . . . . . . . . . . . . . . . 9 1 Distress Signals 10 | . . . . . . . . . . . . . . . . . . . . . 9 1 Times Spotted 329 | . 20 . 33 2 . 8 28 16 . 17 . 10 12 18 . 8 48 13 9 15 15 57 Peak Tracking Total 13 | . 3 . 6 1 . 3 7 6 . 3 1 5 4 7 . 2 9 5 2 3 3 13 Tactical Retreats 19 | . 1 . 1 . . . 4 . . . . . . . . . 2 . . 1 2 8 Traps | -11 -10 -10 -9 -9 -9 -8 -8 -8 -8 -7 -6 -6 -5 -5 -5 -4 -4 -4 -4 -4 -3 -2 ------- Run | Scr Mat Min Mat Min Exi Min Mat Gar Mat Fac Fac DSF Fac Upp Upp Fac Ext Cet Arc Hub Res Res Traps Triggered 10 | . 1 . . . . . 1 5 . . . 1 . . . . . . . 1 . 1 Indirectly 1 | . . . . . . . . . . . . . . . . . . . . 1 . . Trap Hack Attempts . | . . . . . . . . . . . . . . . . . . . . . . . Triggered . | . . . . . . . . . . . . . . . . . . . . . . . Disarmed . | . . . . . . . . . . . . . . . . . . . . . . . Reprogrammed 4 | . . . . . . . . . . . . . 4 . . . . . . . . . Reused 1 | . . . . . . . . . . . . . 1 . . . . . . . . . Traps Extracted . | . . . . . . . . . . . . . . . . . . . . . . . Installed . | . . . . . . . . . . . . . . . . . . . . . . . Triggered 1 | . . . . . . . . . . . . . 1 . . . . . . . . . Machines | -11 -10 -10 -9 -9 -9 -8 -8 -8 -8 -7 -6 -6 -5 -5 -5 -4 -4 -4 -4 -4 -3 -2 ---------- Run | Scr Mat Min Mat Min Exi Min Mat Gar Mat Fac Fac DSF Fac Upp Upp Fac Ext Cet Arc Hub Res Res Machines Disabled 36 | . 1 . 3 . . . . . . 3 . . 1 . . . . 1 1 25 . 1 Max in Single Turn 24 | . 1 . 2 . . . . . . 2 . . 1 . . . . . 1 24 . 1 Garrison Access 5 | . . . . . . . . . 1 1 . . . . . . . . . 1 1 1 Network Hub 1 | . . . . . . . . . . . . . . . . . . . . 1 . . Machines Sabotaged . | . . . . . . . . . . . . . . . . . . . . . . . Garrisons Compromised . | . . . . . . . . . . . . . . . . . . . . . . . Overloaded Fab Kills . | . . . . . . . . . . . . . . . . . . . . . . . Hacking | -11 -10 -10 -9 -9 -9 -8 -8 -8 -8 -7 -6 -6 -5 -5 -5 -4 -4 -4 -4 -4 -3 -2 --------- Run | Scr Mat Min Mat Min Exi Min Mat Gar Mat Fac Fac DSF Fac Upp Upp Fac Ext Cet Arc Hub Res Res Machines Accessed 60 | . 3 . 3 . 1 . 4 . 3 7 4 . 7 . . 4 9 2 . 3 6 4 Terminals 39 | . 1 . 2 . . . 3 . 2 3 3 . 4 . . 4 8 2 . 2 2 3 Fabricators 3 | . . . . . . . . . . 1 1 . 1 . . . . . . . . . Repair Stations 2 | . . . . . . . . . . 1 . . . . . . . . . . 1 . Recycling Units 8 | . 2 . 1 . . . . . . 1 . . 2 . . . 1 . . . 1 . Scanalyzers 1 | . . . . . . . . . . . . . . . . . . . . . 1 . Garrison Access 6 | . . . . . . . 1 . 1 1 . . . . . . . . . 1 1 1 Total Hacks 138 | . 8 . 11 . 1 . 9 . 8 17 11 . 20 . . 9 20 4 . 3 10 7 Successful 75 | . 4 . 6 . 1 . 3 . 6 9 6 . 11 . . 4 9 3 . 1 7 5 Failed 63 | . 4 . 5 . . . 6 . 2 8 5 . 9 . . 5 11 1 . 2 3 2 Catastrophic 8 | . . . . . . . . . . 1 1 . 1 . . . 3 . . . 2 . Database Lockouts . | . . . . . . . . . . . . . . . . . . . . . . . Manual 35 | . 3 . 1 . 1 . 1 . 2 5 2 . 6 . . 2 6 1 . . 2 3 Terminals 91 | . 2 . 7 . . . 8 . 7 8 9 . 10 . . 9 17 4 . 2 2 6 Fabricators 8 | . . . . . . . . . . 2 2 . 4 . . . . . . . . . Repair Stations 5 | . . . . . . . . . . 2 . . . . . . . . . . 3 . Recycling Units 25 | . 6 . 4 . . . . . . 3 . . 6 . . . 3 . . . 3 . Scanalyzers 1 | . . . . . . . . . . . . . . . . . . . . . 1 . Garrison Access 7 | . . . . . . . 1 . 1 2 . . . . . . . . . 1 1 1 Terminal Hacks 33 | . . . 3 . 1 . 2 . 3 3 3 . 4 . . 3 5 3 . . 1 2 Record 3 | . . . . . . . . . . . . . 1 . . . . 2 . . . . Part Schematic 4 | . . . . . . . . . . 1 1 . 1 . . . 1 . . . . . Robot Analysis 2 | . . . 1 . . . . . . . . . 1 . . . . . . . . . Open Door 4 | . . . . . . . . . . . . . . . . . 3 1 . . . . Open DSF 1 | . . . . . . . . . . . 1 . . . . . . . . . . . Level Access Points 1 | . . . . . . . . . . . . . . . . . . . . . . 1 Branch Access Points 3 | . . . . . . . . . . . . . . . . 1 1 . . . 1 . Terminal Index 1 | . . . . . . . . . . . . . . . . 1 . . . . . . Fabricator Index 1 | . . . . . . . . . . . 1 . . . . . . . . . . . Recycling Unit Index 3 | . . . . . . . . . 1 1 . . . . . 1 . . . . . . Alert Level 3 | . . . 1 . . . 1 . 1 . . . . . . . . . . . . . Unreport Threat 1 | . . . 1 . . . . . . . . . . . . . . . . . . . Locate Traps 3 | . . . . . . . 1 . . 1 . . . . . . . . . . . 1 Reprogram Traps 1 | . . . . . . . . . . . . . 1 . . . . . . . . . Hauler Manifests 1 | . . . . . . . . . 1 . . . . . . . . . . . . . EX-Prototype ID Bank 1 | . . . . . 1 . . . . . . . . . . . . . . . . . Fabricator Hacks 5 | . . . . . . . . . . . 1 . 4 . . . . . . . . . Load Schematic 2 | . . . . . . . . . . . . . 2 . . . . . . . . . Build 3 | . . . . . . . . . . . 1 . 2 . . . . . . . . . Repair Station Hacks 3 | . . . . . . . . . . 2 . . . . . . . . . . 1 . Scan Component 2 | . . . . . . . . . . 1 . . . . . . . . . . 1 . Repair 1 | . . . . . . . . . . 1 . . . . . . . . . . . . Recycling Unit Hacks 9 | . 3 . 2 . . . . . . . . . 1 . . . 1 . . . 2 . Report Inventory 6 | . 2 . 1 . . . . . . . . . 1 . . . 1 . . . 1 . Retrieve Components 3 | . 1 . 1 . . . . . . . . . . . . . . . . . 1 . Scanalyzer . | . . . . . . . . . . . . . . . . . . . . . . . Garrison Access Hacks 7 | . . . . . . . 1 . 1 2 . . . . . . . . . 1 1 1 Unlock Access 1 | . . . . . . . 1 . . . . . . . . . . . . . . . Seal Access 5 | . . . . . . . . . 1 1 . . . . . . . . . 1 1 1 Coupler Status 1 | . . . . . . . . . . 1 . . . . . . . . . . . . Unauthorized Hacks 18 | . 1 . 1 . . . . . 2 2 2 . 2 . . 1 3 . . . 2 2 Terminals 10 | . . . . . . . . . 2 1 2 . . . . 1 2 . . . . 2 Assimilate 1 | . . . . . . . . . . . . . . . . . . . . . . 1 Botnet 9 | . . . . . . . . . 2 1 2 . . . . 1 2 . . . . 1 Fabricators . | . . . . . . . . . . . . . . . . . . . . . . . Repair Stations . | . . . . . . . . . . . . . . . . . . . . . . . Recycling Units 7 | . 1 . 1 . . . . . . 1 . . 2 . . . 1 . . . 1 . Reject 7 | . 1 . 1 . . . . . . 1 . . 2 . . . 1 . . . 1 . Scanalyzers 1 | . . . . . . . . . . . . . . . . . . . . . 1 . Researchers 1 | . . . . . . . . . . . . . . . . . . . . . 1 . Garrison Access . | . . . . . . . . . . . . . . . . . . . . . . . Data Cores Recovered 1 | . . . . . . . . . . . . . . . . . . . . . . 1 Used 1 | . . . . . . . . . . . . . . . . . . . . . . 1 Hacking Detections 42 | . 3 . 3 . . . 2 . 2 5 4 . 5 . . 4 6 2 . 1 2 3 Full Trace Events 8 | . 1 . 2 . . . 2 . 1 . . . . . . . 2 . . . . . Feedback Events . | . . . . . . . . . . . . . . . . . . . . . . . Feedback Blocked . | . . . . . . . . . . . . . . . . . . . . . . . Robot Schematics Acquired . | . . . . . . . . . . . . . . . . . . . . . . . Robots Built . | . . . . . . . . . . . . . . . . . . . . . . . Authchips . | . . . . . . . . . . . . . . . . . . . . . . . Time . | . . . . . . . . . . . . . . . . . . . . . . . Total Robot Build Rating . | . . . . . . . . . . . . . . . . . . . . . . . Part Schematics Acquired 4 | . . . . . . . . . . 1 1 . 1 . . . 1 . . . . . Parts Built 6 | . . . . . . . . . . . 2 . 4 . . . . . . . . . Authchips 2 | . . . . . . . . . . . . . 2 . . . . . . . . . Time 142 | . . . . . . . . . . . 42 . 100 . . . . . . . . . Total Part Build Rating 38 | . . . . . . . . . . . 16 . 22 . . . . . . . . . Parts Repaired 1 | . . . . . . . . . . 1 . . . . . . . . . . . . Time 26 | . . . . . . . . . . 26 . . . . . . . . . . . . Parts Recycled . | . . . . . . . . . . . . . . . . . . . . . . . Recycled Matter . | . . . . . . . . . . . . . . . . . . . . . . . Retrieved Matter . | . . . . . . . . . . . . . . . . . . . . . . . Retrieved Components 7 | . 3 . 2 . . . . . . . . . . . . . . . . . 2 . Parts Scanalyzed . | . . . . . . . . . . . . . . . . . . . . . . . Part Schematics Acquired . | . . . . . . . . . . . . . . . . . . . . . . . Parts Damaged . | . . . . . . . . . . . . . . . . . . . . . . . Bothacking | -11 -10 -10 -9 -9 -9 -8 -8 -8 -8 -7 -6 -6 -5 -5 -5 -4 -4 -4 -4 -4 -3 -2 ------------ Run | Scr Mat Min Mat Min Exi Min Mat Gar Mat Fac Fac DSF Fac Upp Upp Fac Ext Cet Arc Hub Res Res Used RIF Installer 1 | . . . . . . . . 1 . . . . . . . . . . . . . . Robots Hacked . | . . . . . . . . . . . . . . . . . . . . . . . Non-combat . | . . . . . . . . . . . . . . . . . . . . . . . Combat . | . . . . . . . . . . . . . . . . . . . . . . . Robot Hacks Applied . | . . . . . . . . . . . . . . . . . . . . . . . Relay Couplers Released . | . . . . . . . . . . . . . . . . . . . . . . . Fabnet Peak Effective % . | . . . . . . . . . . . . . . . . . . . . . . . Robots Rewired 16 | . . . . . . . . 2 . . . . . 2 . . 12 . . . . . Allies Hacked 1 | . . . . . . . . . . . . . . . . . . . . 1 . . Hacks Repelled . | . . . . . . . . . . . . . . . . . . . . . . . Allies | -11 -10 -10 -9 -9 -9 -8 -8 -8 -8 -7 -6 -6 -5 -5 -5 -4 -4 -4 -4 -4 -3 -2 -------- Run | Scr Mat Min Mat Min Exi Min Mat Gar Mat Fac Fac DSF Fac Upp Upp Fac Ext Cet Arc Hub Res Res Total Allies 25 | . . . . . . . . 2 . . . . . 2 . . 16 5 . . . . Largest Group 14 | . . . . . . . . 2 . . . . . 2 1 1 10 14 3 2 . . Highest-Rated Group 968 | . . . . . . . . 27 . . . . . 59 30 30 559 968 233 85 . . Highest-Rated Ally 159 | . . . . . . . . 14 . . . . . 30 30 30 159 159 148 44 . . Total Orders . | . . . . . . . . . . . . . . . . . . . . . . . Ally Attacks 228 | . . . . . . . . 1 . . . . . 2 . 2 100 105 7 11 . . Total Damage 6354 | . . . . . . . . . . . . . . 61 . 33 3152 2610 220 278 . . Kills 34 | . . . . . . . . . . . . . . 1 . . 12 16 2 3 . . Allies Corrupted 1 | . . . . . . . . . . . . . . . . . . 1 . . . . Allies Melted 1 | . . . . . . . . . . . . . . . . . 1 . . . . . Intel | -11 -10 -10 -9 -9 -9 -8 -8 -8 -8 -7 -6 -6 -5 -5 -5 -4 -4 -4 -4 -4 -3 -2 ------- Run | Scr Mat Min Mat Min Exi Min Mat Gar Mat Fac Fac DSF Fac Upp Upp Fac Ext Cet Arc Hub Res Res Robot Analysis Total 2 | . . . 1 . . . . . . . . . 1 . . . . . . . . . Derelict Logs Recovered 3 | . . . . . . . . . . . . . . 3 . . . . . . . . Drone Launches . | . . . . . . . . . . . . . . . . . . . . . . . Drone Recoveries . | . . . . . . . . . . . . . . . . . . . . . . . Exploration | -11 -10 -10 -9 -9 -9 -8 -8 -8 -8 -7 -6 -6 -5 -5 -5 -4 -4 -4 -4 -4 -3 -2 ------------- Run | Scr Mat Min Mat Min Exi Min Mat Gar Mat Fac Fac DSF Fac Upp Upp Fac Ext Cet Arc Hub Res Res Turns Passed 19700 | 69 847 197 1388 249 433 458 2308 591 588 2695 266 267 1016 1191 470 677 1319 422 1258 555 1031 1405 Spaces Moved 9123 | 49 521 159 552 125 227 200 1057 192 173 1201 179 107 563 639 214 353 603 233 178 312 510 776 Core 272 | 1 . . . . . . . . . . . . . . . . . . . . . 271 Treads 4272 | . . . . . . . 114 157 . . 25 107 563 639 214 176 556 233 178 312 510 488 Legs 4318 | 48 521 159 552 125 227 200 943 35 173 1181 154 . . . . . . . . . . . Wheels 261 | . . . . . . . . . . 20 . . . . . 177 47 . . . . 17 Hover . | . . . . . . . . . . . . . . . . . . . . . . . Flight . | . . . . . . . . . . . . . . . . . . . . . . . Fastest Speed 50 | 50 120 120 120 190 190 190 150 150 260 125 122 145 145 145 152 130 145 160 160 160 155 50 Average Speed 166 | 118 120 120 187 190 190 192 185 206 260 192 132 145 145 152 201 157 159 160 160 160 175 121 Slowest Speed 540 | 120 120 120 260 190 190 260 190 540 260 196 225 145 145 232 232 232 240 160 160 160 232 320 Overloaded Moves . | . . . . . . . . . . . . . . . . . . . . . . . Propulsion Burnouts . | . . . . . . . . . . . . . . . . . . . . . . . Robots Hopped 1 | . . . . . . . . . . . . . . . . . 1 . . . . . Cave-ins Triggered . | . . . . . . . . . . . . . . . . . . . . . . . Exploration Rate (%) 42 | 5 70 37 43 38 61 57 60 41 16 29 3 76 9 82 18 8 77 79 98 27 13 24 Regions Visited 22 Branch Regions 10 Pre-discovered Areas 1 | . . . . . . . . . . . . . . 1 . . . . . . . . Known Exits Taken 5 | . . . . . . . 1 . 1 . 1 . . . . 1 1 . . . . . Unknown Exits Taken 15 | 1 1 1 1 1 1 1 . . . 1 . . 1 1 1 . . 1 1 1 1 . Scrap Searched 5 | . . . . 2 . . . . . . . . . 1 2 . . . . . . . Spaces Dug 8 | . . . . . . . 1 . . 4 . . 1 . . . . . . . . 2 Terrain Destroyed 502 | . . . 39 . . . 4 . . 45 . . 13 122 . 1 12 . . 164 9 93 Melee 1 | . . . . . . . 1 . . . . . . . . . . . . . . . Projectile 114 | . . . . . . . 3 . . 7 . . 12 13 . 1 12 . . . 9 57 AOE 386 | . . . 39 . . . . . . 38 . . . 109 . . . . . 164 . 36 Terrain Rammed . | . . . . . . . . . . . . . . . . . . . . . . . Walls Destroyed . | . . . . . . . . . . . . . . . . . . . . . . . Machines Disabled . | . . . . . . . . . . . . . . . . . . . . . . . Actions | -11 -10 -10 -9 -9 -9 -8 -8 -8 -8 -7 -6 -6 -5 -5 -5 -4 -4 -4 -4 -4 -3 -2 --------- Run | Scr Mat Min Mat Min Exi Min Mat Gar Mat Fac Fac DSF Fac Upp Upp Fac Ext Cet Arc Hub Res Res Total 12592 | 57 645 165 771 129 231 237 1293 300 311 1495 209 153 721 772 253 462 917 275 1148 360 607 1081 Wait 1988 | . 36 4 68 . . . 102 7 136 169 12 2 102 38 35 57 63 17 954 23 13 150 Move 9098 | 48 520 158 551 124 226 199 1056 190 172 1200 178 106 562 638 213 352 600 232 177 311 509 776 Hop 1 | . . . . . . . . . . . . . . . . . 1 . . . . . Pick Up 211 | 1 16 1 33 . 1 7 26 6 . 38 5 4 13 5 1 9 20 1 3 3 9 9 Fast Attach 105 | 7 1 . 14 . . . 4 5 . 3 2 2 5 7 2 7 10 5 1 1 7 22 Attach 95 | . 1 . 7 . . 6 9 6 . 8 2 4 8 5 1 3 9 1 1 . 5 19 Detach 10 | . . . 4 . . . . . . 1 . . 1 2 . . 1 . . . . 1 Swap 80 | . 6 1 4 . . . 8 9 3 16 3 2 1 7 . 1 9 1 . . 6 3 Drop 164 | 1 12 1 22 . 4 1 18 1 . 18 7 2 9 4 1 9 23 5 3 4 11 8 Fire 617 | . 52 . 68 . . . 11 37 . 42 . 31 20 43 . 15 132 13 9 18 47 79 Melee 88 | . . . . 5 . 24 59 . . . . . . . . . . . . . . . Ram 7 | . . . . . . . . . . . . . . . . . . . . . . 7 Kick 1 | . 1 . . . . . . . . . . . . . . . . . . . . . Crush 12 | . . . . . . . . . . . . . . . . 1 4 . . . . 7 Escape Stasis 8 | . . . . . . . . 8 . . . . . . . . . . . . . . Rewire 107 | . . . . . . . . 31 . . . . . 23 . 8 45 . . . . . Trap . | . . . . . . . . . . . . . . . . . . . . . . . Miscellaneous . | . . . . . . . . . . . . . . . . . . . . . . . Route ------- -11/Scrapyard -10/Materials (discovered 3 exits: *Mat x2 / [*Min]) -10/Mines -9/Materials (discovered 3 exits: *Mat / [*Min] / [*Sto]) -9/Mines -9/Exiles -8/Mines -8/Materials (discovered 3 exits: *Fac x2 / Gar) -8/Garrison -8/Materials -7/Factory -6/Factory -6/DSF -5/Factory -5/Upper Caves -5/Upper Caves -4/Factory (discovered 4 exits: Upp x2 / *Ext x2) -4/Extension (discovered 2 exits: *Res / *Cet) -4/Cetus (discovered 2 exits: *Res / *Arc) -4/Archives (discovered 3 exits: *Res / *Hub x2) -4/Hub_04(d) -3/Research (discovered 4 exits: *Res / Arm / Qua x2) -2/Research (discovered 3 exits: Acc x3) History --------- Turn | Location | Event 5 | -11/Scrapyard | Discovered new exit (range 16) 70 | -11/Scrapyard | Entered Materials 303 | -10/Materials | Discovered new exit (range 3) 318 | -10/Materials | Build established: Mutant 411 | -10/Materials | Discovered new exit (range 8) 784 | -10/Materials | Discovered new exit (range 13) 917 | -10/Materials | Entered Mines 998 | -10/Mines | Met a Derelict bent on vengeance 1000 | -10/Mines | Assembled infested the area 1005 | -10/Mines | Assisted by a Guerilla fighting off Assembled 1037 | -10/Mines | A weapon hastily lodged in a ceiling crevice suddenly fell to the ground 1059 | -10/Mines | Discovered new exit (range 12) 1114 | -10/Mines | Entered Materials 1114 | -9/Materials | Evolved 2 slots: Propulsion x1, Utility x1 1367 | -9/Materials | Lost 5 parts (1p1n1u2w) 1573 | -9/Materials | Discovered new exit (range 16) 1647 | -9/Materials | Build established: Scavenger-Mutant 1875 | -9/Materials | Discovered new exit (range 4) 2347 | -9/Materials | Discovered new exit (range 7) 2502 | -9/Materials | Entered Mines 2743 | -9/Mines | Deemed a non-threat by the Exiles lab entrance 2743 | -9/Mines | Discovered new exit (range 5) 2751 | -9/Mines | Entered Exiles 2799 | -9/Exiles | Met 8R-AWN 2833 | -9/Exiles | Met EX-HEX 2888 | -9/Exiles | Met EX-BIN 2913 | -9/Exiles | Aligned with FarCom system 2915 | -9/Exiles | Given EX-Vault access code 2959 | -9/Exiles | Opened EX-Vault 2983 | -9/Exiles | Found XL Autogun Array 3043 | -9/Exiles | Warned to stay clear of 0b10 Research branches 3096 | -9/Exiles | Met EX-DEC 3161 | -9/Exiles | Discovered new exit (range 14) 3184 | -9/Exiles | Left Exiles lab with XL Autogun Array 3184 | -9/Exiles | Entered Mines 3203 | -8/Mines | Core integrity fell below 50% 3229 | -8/Mines | Lost 4 parts (1p2n1u) 3400 | -8/Mines | Core integrity fell below 20% 3503 | -8/Mines | Build established: Mutant 3619 | -8/Mines | Discovered new exit (range 11) 3642 | -8/Mines | Entered Materials 3642 | -8/Materials | Evolved 2 slots: Weapon x2 4116 | -8/Materials | Lost 3 parts (2n1u) 4606 | -8/Materials | Discovered new exit (range 5) 5304 | -8/Materials | Lost 3 parts (1p1n1w) 5409 | -8/Materials | Discovered new exit (range 6) 5948 | -8/Materials | Identified exit to Garrison 5950 | -8/Materials | Entered Garrison 6055 | -8/Garrison | Destroyed 7 combat bots 6079 | -8/Garrison | Build established: Skirmisher 6190 | -8/Garrison | Triggered checkpoint 6205 | -8/Garrison | Core integrity fell below 50% 6206 | -8/Garrison | Triggered checkpoint 6416 | -8/Garrison | Triggered checkpoint 6439 | -8/Garrison | Discovered new exit (range 15) 6457 | -8/Garrison | Lost 3 parts (1n2w) 6528 | -8/Garrison | Installed Relay Interface Framework 6541 | -8/Garrison | Entered Materials 6717 | -8/Materials | Build established: Scavenger-Skirmisher 7109 | -8/Materials | Discovered new exit (range 5) 7123 | -8/Materials | Identified exit to Factory 7129 | -8/Materials | Entered Factory 7129 | -7/Factory | Evolved 2 slots: Propulsion x1, Utility x1 8789 | -7/Factory | Repaired Hcp. Storage Unit 8794 | -7/Factory | Build established: Skirmisher 9152 | -7/Factory | Build established: Mutant 9240 | -7/Factory | Discovered new exit (range 15) 9476 | -7/Factory | Build established: Skirmisher 9824 | -7/Factory | Entered another Factory area 9824 | -6/Factory | Evolved 2 slots: Power x1, Propulsion x1 10031 | -6/Factory | Fabricated Adv. Heavy Treads (x2) 10090 | -6/Factory | Identified exit to DSF 10090 | -6/Factory | Entered DSF 10117 | -6/DSF | Additional patrols routed to DSF 10219 | -6/DSF | Lost 3 parts (2u1w) 10260 | -6/DSF | Sterilization system engaged 10280 | -6/DSF | Ambient heat levels rising (+10) 10295 | -6/DSF | Ambient heat levels rising (+10) 10310 | -6/DSF | Ambient heat levels rising (+10) 10312 | -6/DSF | Discovered new exit (range 16) 10325 | -6/DSF | Ambient heat levels rising (+10) 10340 | -6/DSF | Ambient heat levels rising (+10) 10355 | -6/DSF | Ambient heat levels rising (+10) 10357 | -6/DSF | Entered Factory 10357 | -5/Factory | Evolved 2 slots: Propulsion x1, Utility x1 10445 | -5/Factory | Fabricated Adv. Medium Treads (x2) 10498 | -5/Factory | Fabricated Adv. Terrain Scan Processor (x2) 10772 | -5/Factory | Build established: Machinist-Skirmisher 11123 | -5/Factory | Discovered new exit (range 5) 11373 | -5/Factory | Entered Upper Caves 11537 | -5/Upper Caves | Build established: Machinist-Mutant 11712 | -5/Upper Caves | Spotted B-75 Beast 11726 | -5/Upper Caves | Destroyed B-75 Beast 11896 | -5/Upper Caves | System corruption reached 10% 11900 | -5/Upper Caves | Destroyed 10 combat bots 12017 | -5/Upper Caves | Attracted the attention of an 0b10 outpost 12042 | -5/Upper Caves | System corruption reached 30% 12136 | -5/Upper Caves | Lost 7 parts (2p1n1u3w) 12324 | -5/Upper Caves | Build established: Mutant 12360 | -5/Upper Caves | Encountered a Warlord checkpoint 12423 | -5/Upper Caves | Learned Factory terminal intel 12530 | -5/Upper Caves | Attracted the attention of an 0b10 checkpoint 12553 | -5/Upper Caves | Discovered new exit (range 5) 12564 | -5/Upper Caves | Entered another Upper Caves area 12564 | -5/Upper Caves | Accompanied by 1 ally 12603 | -5/Upper Caves | Encountered a Warlord checkpoint 13027 | -5/Upper Caves | Discovered new exit (range 4) 13034 | -5/Upper Caves | Entered Factory 13034 | -4/Factory | Accompanied by 1 ally 13034 | -4/Factory | Evolved 2 slots: Utility x2 13035 | -4/Factory | Loaded intel: 28 terminal locations 13326 | -4/Factory | Build established: Skirmisher 13513 | -4/Factory | Identified exit to Upper Caves 13513 | -4/Factory | Identified exit to Extension 13711 | -4/Factory | Entered Extension 13727 | -4/Extension | Build established: Scavenger-Skirmisher 13861 | -4/Extension | Rescued a captive Derelict 13861 | -4/Extension | Rescued a captive Derelict 13923 | -4/Extension | Rescued a captive Derelict 14046 | -4/Extension | Spotted B-86 Titan 14160 | -4/Extension | Destroyed 7 combat bots 14184 | -4/Extension | Spotted B-86 Titan 14189 | -4/Extension | Destroyed B-86 Titan 14197 | -4/Extension | Destroyed B-86 Titan 14236 | -4/Extension | Disrupted transfer network 14417 | -4/Extension | Identified exit to Cetus 14528 | -4/Extension | Rescued A7 14711 | -4/Extension | First assault squad dispatched 14992 | -4/Extension | Discovered new exit (range 10) 15030 | -4/Extension | Entered Cetus 15030 | -4/Cetus | Accompanied by 9 allies (A7) 15035 | -4/Cetus | Acquired a Cetus Manufacturing Module code from A7 15050 | -4/Cetus | Spotted Cetus Guard 15050 | -4/Cetus | Spotted Cetus Guard 15053 | -4/Cetus | Spotted Cetus Guard 15057 | -4/Cetus | Spotted Cetus Guard 15059 | -4/Cetus | Allies destroyed Cetus Guard 15065 | -4/Cetus | Allies destroyed Cetus Guard 15069 | -4/Cetus | Destroyed Cetus Guard 15070 | -4/Cetus | Allies destroyed Cetus Guard 15139 | -4/Cetus | Started Cetus Manufacturing Module 15153 | -4/Cetus | Escorted A7 to Cetus Mainframe 15164 | -4/Cetus | Manufactured an Enhanced Grunt 15168 | -4/Cetus | Build established: Commander-Gunner 15189 | -4/Cetus | Manufactured an Enhanced Grunt 15214 | -4/Cetus | Manufactured an Enhanced Grunt 15239 | -4/Cetus | Manufactured an Enhanced Grunt 15260 | -4/Cetus | Discovered new exit (range 16) 15264 | -4/Cetus | Manufactured an Enhanced Grunt 15295 | -4/Cetus | Spotted Cetus Guard 15295 | -4/Cetus | Spotted Cetus Guard 15302 | -4/Cetus | Spotted Cetus Guard 15302 | -4/Cetus | Spotted Cetus Guard 15305 | -4/Cetus | Allies destroyed Cetus Guard 15306 | -4/Cetus | Allies destroyed Cetus Guard 15311 | -4/Cetus | Allies destroyed Cetus Guard 15312 | -4/Cetus | Allies destroyed Cetus Guard 15313 | -4/Cetus | Discovered new exit (range 16) 15326 | -4/Cetus | Met Revision 17 15406 | -4/Cetus | Cetus Manufacturing Module disabled 15452 | -4/Cetus | Entered Archives 15452 | -4/Archives | Accompanied by 3 allies (A7) 15457 | -4/Archives | Received a hacking code to weaken MAIN.C 15503 | -4/Archives | Unable to access archive contents 15521 | -4/Archives | Unable to access archive contents 15530 | -4/Archives | Discovered new exit (range 15) 15563 | -4/Archives | Discovered new exit (range 14) 15623 | -4/Archives | Build established: Scavenger-Gunner 15635 | -4/Archives | Discovered new exit (range 13) 16710 | -4/Archives | Entered Hub_04(d) 16710 | -4/Hub_04(d) | Accompanied by 2 allies 16770 | -4/Hub_04(d) | Discovered new exit (range 11) 16928 | -4/Hub_04(d) | Garrison activated, responded to threat 17196 | -4/Hub_04(d) | Build established: Scavenger-Tank 17255 | -4/Hub_04(d) | Network Hub disabled 17265 | -4/Hub_04(d) | Entered Research 17265 | -3/Research | Evolved 2 slots: Power x1, Utility x1 17266 | -3/Research | Identified exit to Armory 17681 | -3/Research | Identified exit to Quarantine 17721 | -3/Research | System corruption reached 10% 18275 | -3/Research | Discovered new exit (range 4) 18296 | -3/Research | Entered another Research area 18296 | -2/Research | Evolved 2 slots: Utility x2 18395 | -2/Research | Identified exit to Access 18732 | -2/Research | Lost 6 parts (2p2u2w) 19202 | -2/Research | System corruption reached 10% 19247 | -2/Research | Lost 3 parts (2u1w) 19357 | -2/Research | Lost 12 parts (2p4n5u1w) 19452 | -2/Research | Spotted B-90 Cyclops 19482 | -2/Research | Core integrity fell below 50% 19515 | -2/Research | Lost 13 parts (3p4n3u3w) 19569 | -2/Research | Found Unknown Piercing Weapon 19569 | -2/Research | Identified Enh. Force Lance 19579 | -2/Research | Core integrity fell below 20% 19647 | -2/Research | Spotted B-90 Cyclops 19685 | -2/Research | Found Prototype Reactor 19685 | -2/Research | Identified Vortex Chain Reactor 19701 | -2/Research | Destroyed by H-88 Terminator with Heavy Machine Gun Last Messages --------------- 19693_ System corrupted: Com. HERF Cannon rejected. 19693_ P-80 Master resets H-88 Terminator, system corruption cleaned. 19693_ Slug penetrates Wall. 19693_ Penetrated by Slug. 19695_ Slug penetrates Wall. 19695_ Penetrated by Slug. 19696_ Wall collapses. 19696_ Slug penetrates Wall. 19696_ Penetrated by Slug. 19697_ Slug penetrates Wall. 19698_ H-88 Terminator system terminally corrupted. 19698_ KE Penetrator fried. 19698_ Adv. Targeting Computer fried. 19698_ Penetrated by Slug. 19698_ Imp. Terrain Scanner destroyed. 19698_ Penetrated by Slug. 19699_ Slug penetrates H-88 Terminator. 19700_ Penetrated by Slug. 19700_ Slug penetrates Wall. 19701_ Penetrated by Slug. Map ----- +----------------------------------------------------+ | ?????????????????????????# #??????????? ??? | | ?????????????????????????# T #??????????????? | | ?????????????????????????# " #??????????????? | | ??????????????????????#??# ! #??????????????? | | ?????????????????????????# ################ | | ?????????????????????????# | | ?????????????????????????# ######+################ | | ?????????????????????????# #??? ?????????????? | | ?????????????????????????# #? ???????????? | | ?????????????????????????# # =#????? ????? | | ??????????????????????#??# ## #???? ???#?? | | ????????????????????????##g############??????????? | | ?????????????????#??????# #??????????? ? | | ????????????????????????# ###??????????? | | ???????????????????????## +??????????? | | ?????????????#??????????# ###??????????? | | ?????????????#??????????########g #????????????? | | ???????????????????????????????# #????????????? | | ????????????????????????########g ######???????? | | ?????????????????????#??# g ??? | | ????????????????????????# ?? | | ????????????????????????# Yp ??? | | ?????????????????#??????#u%hh ??? | | ????????????????????#####hp;##############+###???? | | ????????????????????# #??????????????????? | | ?????????????#??????#] @ ! #?? ???????????????? | | ????????????????????# #??????????????????? | | ????????????????????# ##?????????????????? | | ????????????????#???###########??????????????????? | | ?????????????????????????????????????????????????? | | ?????????????????????????????????????????????????? | | ?????????????????#???????????????????????????????? | | ????????????????????????????????????#????????????? | | ?????????????????????????????????????????????????? | | ?????????????????????????????????????????????????? | | ?????????????????????????????????????????????????? | | ?????????????#?????#?????????????????????????????? | | ?????????????????#??????????#????????????????????? | | ??????????????#???#?#????????????????????????????? | | ???????????????????#?????????????????????????????? | | ?????????????????????????#???????????????????????? | | ?????????????????????????????????????????????????? | | ?????????????????????????????????????????????????? | | ?????????????????????????????????????????????????? | | ?????????????????????????????????????????????????? | | ?????????????????????????????????????????????????? | | ?????????????????????????????????????????????????? | | ?????????????????????????????????????????????????? | | ?????????????????????????????????????????????????? | | ?????????????????????????????????????????????????? | +----------------------------------------------------+ Best States ------------- Heat Dissipation 106 Coolant Potential 50 Energy Generation 63 Energy Capacity 1215 Matter Stores 300 Matter Capacity 450 Sight Range 16 Terrain Scan Range 16 Terrain Scan Density 210 ECM Strength 2 Jamming Range 14 Armor Coverage 1050 Resistance: TH 25 Core Shielding 30 Power Shielding 66 Phase Shifting 10 Evasion (%) 55 Targeting Accuracy 8 Melee Accuracy 5 Target Analysis 6 Recoil Reduction 6 Matter Filtering 30 Kinecelleration 30 Offensive Hacking 14 Authchip Count 3 Item Schematics ----------------- Adv. Shield Generator | -7/Factory | Hacked Adv. Medium Treads | -6/Factory | Hacked Adv. Terrain Scan Processor | -5/Factory | Hacked Adv. Heavy Treads | -4/Extension | Hacked Robot Schematics ------------------ None Fabricated ------------ Adv. Heavy Treads | x2 | -6/Factory | Preloaded Adv. Medium Treads | x2 | -5/Factory | Authchip Adv. Terrain Scan Processor | x2 | -5/Factory | Authchip Alien Tech Used ----------------- None Achievements -------------- Maybe Next Time I'll Detach My Launcher Challenges ------------ None Game ------ Seed BiometalGlidesysExoskeleton Manual? 0 Play Time 03:28:20 Cumulative 37.4 hours Start 2022.04.24 @ 23:17:18 End 2022.04.25 @ 16:30:26 Sessions 3 Manual Loads 0 Difficulty Rogue Special Mode None Game No. 23 Rogue 23 Adventurer 0 Explorer 0 Win Type - Total 0 Types 0/0/0/0/0/0/0/0/0 Lore% 15 Gallery% 36 Achievement% 68 Wizard Run 0 Options --------- ASCII 0 Keyboard 0 Movement Numpad Keybinds 0 Fullscreen 1 Font 24/Smallcaps Map View 76x50 Tactical HUD 1 Map Filters NONE Filters LOW_CONTRAST(13,24,33) Steam 1 RUN: bf71e296-8392-4a69-b481-da168d62f7d1